fUST/lending_fUST_20240802
["ID","MTS","AMOUNT","RATE_DAILY","PERIOD"]
[333851195,1722559838585,-21278.8440927,0.00013688,2]
[333851196,1722559838595,-60365.39910293,0.00013688,2]
[333851198,1722559838606,-1921.02000016,0.00013688,2]
[333851220,1722559840209,-144611.65941991,0.00013688,2]
[333851221,1722559840221,-3901.98685503,0.0001369,2]
[333851222,1722559840234,-10042.3473327,0.0001369,2]
[333851223,1722559840245,-1595.23,0.00013696,2]
[333851224,1722559840259,-177.0658297,0.00013697,2]
[333851345,1722559843107,-1418.1641703,0.00013697,2]
[333851346,1722559843116,-1595.23,0.00013697,2]
[333851347,1722559843126,-1039.80409802,0.00013697,2]
[333851350,1722559843168,-555.42590198,0.00013697,2]
[333851352,1722559843178,-893.64967247,0.00013697,2]
[333851478,1722561032275,-158.664137,0.00012986,2]
[333851480,1722561032285,-95.335863,0.00013246,2]
[333851482,1722561032297,-4378.5919123,0.00013246,2]
[333851484,1722561032307,-367.7699373,0.00013344,2]
[333851486,1722561032316,-886.16673387,0.00013598,2]
[333851488,1722561032326,-9999.28661147,0.0001366,2]
[333851490,1722561032335,-847.68,0.00013687,2]
[333851492,1722561032344,-847.68,0.00013687,2]
[333851494,1722561032353,-31.91952445,0.00013687,2]
[333852048,1722561038438,-815.76047555,0.00013687,2]
[333852050,1722561038448,-847.68,0.00013687,2]
[333852052,1722561038457,-847.68,0.00013688,2]
[333852055,1722561038476,-19452.45936043,0.00013688,2]
[333852072,1722561040322,-56915.93369534,0.00013688,2]
[333852073,1722561040335,-705.39713821,0.00013688,2]
[333852074,1722561040347,-1540.46282919,0.00013688,2]
[333852075,1722561040358,-181810.57297283,0.00013688,2]
[333852076,1722561040370,-847.68,0.00013697,2]
[333852077,1722561040380,-847.68,0.00013697,2]
[333852078,1722561040391,-847.68,0.00013697,2]
[333852079,1722561040400,-847.68,0.00013697,2]
[333852080,1722561040410,-847.68,0.00013697,2]
[333852081,1722561040419,-847.68,0.00013697,2]
[333852082,1722561040430,-847.68,0.00013697,2]
[333852083,1722561040439,-847.68,0.00013697,2]
[333852084,1722561040449,-847.68,0.00013697,2]
[333852085,1722561040459,-847.68,0.00013697,2]
[333852086,1722561040469,-847.68,0.00013697,2]
[333852087,1722561040479,-847.68,0.00013697,2]
[333852088,1722561040488,-847.68,0.00013697,2]
[333852089,1722561040498,-847.68,0.00013697,2]
[333852090,1722561040507,-27989.3957358,0.00013698,5]
[333852091,1722561040518,-21542.77394667,0.00013698,5]
[333852092,1722561040527,-500.0,0.00013698,2]
[333852093,1722561040537,-500.0,0.00013698,2]
[333852094,1722561040547,-500.0,0.00013698,2]
[333852095,1722561040557,-537.45867448,0.00013698,2]
[333852096,1722561040566,-500.0,0.00013698,2]
[333852097,1722561040577,-500.0,0.00013698,2]
[333852098,1722561040586,-500.0,0.00013698,2]
[333852099,1722561040599,-500.0,0.00013698,2]
[333852100,1722561040609,-220.5572987,0.00013698,2]
[333852101,1722561040619,-500.0,0.00013698,2]
[333852102,1722561040629,-500.0,0.00013698,2]
[333852103,1722561040640,-271.95531405,0.00013698,2]
[333852104,1722561040651,-500.0,0.00013698,2]
[333852105,1722561040662,-500.0,0.00013698,2]
[333852106,1722561040671,-186.85452205,0.00013698,2]
[333852107,1722561040681,-500.0,0.00013698,2]
[333852108,1722561040691,-500.0,0.00013698,2]
[333852109,1722561040701,-500.0,0.00013698,2]
[333852110,1722561040711,-500.0,0.00013698,2]
[333852111,1722561040720,-500.0,0.00013698,2]
[333852112,1722561040730,-500.0,0.00013698,2]
[333852113,1722561040740,-500.0,0.00013698,2]
[333852114,1722561040750,-500.0,0.00013698,2]
[333852115,1722561040760,-500.0,0.00013698,2]
[333852116,1722561040769,-500.0,0.00013698,2]
[333852117,1722561040779,-500.0,0.00013698,2]
[333852118,1722561040789,-500.0,0.00013698,2]
[333852119,1722561040800,-500.0,0.00013698,2]
[333852120,1722561040810,-500.0,0.00013698,2]
[333852121,1722561040820,-500.0,0.00013698,2]
[333852122,1722561040830,-157.9887257,0.00013698,2]
[333852123,1722561040840,-500.0,0.00013698,2]
[333852124,1722561040849,-500.0,0.00013698,2]
[333852125,1722561040860,-500.0,0.00013698,2]
[333852126,1722561040870,-500.0,0.00013698,2]
[333852127,1722561040880,-500.0,0.00013698,2]
[333852128,1722561040892,-500.0,0.00013698,2]
[333852129,1722561040902,-500.0,0.00013698,2]
[333852130,1722561040911,-500.0,0.00013698,2]
[333852131,1722561040922,-500.0,0.00013698,2]
[333852132,1722561040931,-532.51977825,0.00013698,2]
[333852133,1722561040941,-431.9930605,0.00013698,2]
[333852134,1722561040951,-500.0,0.00013698,2]
[333852135,1722561040960,-459.26875127,0.00013698,2]
[333852136,1722561040970,-551.02907896,0.00013698,2]
[333852137,1722561040979,-423.62303101,0.00013698,2]
[333852138,1722561040990,-651.9370881,0.00013698,2]
[333852139,1722561040999,-222.95332024,0.00013698,2]
[333852140,1722561041009,-500.0,0.00013698,2]
[333852141,1722561041019,-299.42269403,0.00013698,2]
[333852142,1722561041030,-500.0,0.00013698,2]
[333852143,1722561041039,-500.0,0.00013698,2]
[333852144,1722561041050,-500.0,0.00013698,2]
[333852145,1722561041061,-500.0,0.00013698,2]
[333852146,1722561041071,-500.0,0.00013698,2]
[333852147,1722561041082,-500.0,0.00013698,2]
[333852148,1722561041094,-500.0,0.00013698,2]
[333852149,1722561041106,-295.0404949,0.00013698,2]
[333852150,1722561041116,-500.0,0.00013698,2]
[333852151,1722561041126,-500.0,0.00013698,2]
[333852152,1722561041137,-500.0,0.00013698,2]
[333852153,1722561041148,-500.0,0.00013698,2]
[333852154,1722561041158,-600.0,0.00013698,2]
[333852155,1722561041169,-348.42361227,0.00013698,2]
[333852156,1722561041180,-500.0,0.00013698,2]
[333852157,1722561041191,-500.0,0.00013698,2]
[333852158,1722561041202,-500.0,0.00013698,2]
[333852159,1722561041213,-500.0,0.00013698,2]
[333852160,1722561041223,-400.0,0.00013698,2]
[333852161,1722561041234,-500.0,0.00013698,2]
[333852162,1722561041244,-239.79524758,0.00013698,2]
[333852163,1722561041255,-500.0,0.00013698,2]
[333852164,1722561041265,-502.47979304,0.00013698,2]
[333852165,1722561041275,-500.0,0.00013698,2]
[333852166,1722561041287,-500.0,0.00013698,2]
[333852167,1722561041297,-238.02611547,0.00013698,2]
[333852168,1722561041307,-500.0,0.00013698,2]
[333852169,1722561041318,-500.0,0.00013698,2]
[333852170,1722561041329,-545.92687513,0.00013698,2]
[333852171,1722561041339,-287.78638418,0.00013698,2]
[333852172,1722561041349,-500.0,0.00013698,2]
[333852173,1722561041360,-500.0,0.00013698,2]
[333852174,1722561041370,-503.8940987,0.00013698,2]
[333852175,1722561041380,-500.0,0.00013698,2]
[333852176,1722561041391,-200.0,0.00013698,2]
[333852177,1722561041403,-287.86222759,0.00013698,2]
[333852178,1722561041413,-503.69390371,0.00013698,2]
[333852179,1722561041424,-500.0,0.00013698,2]
[333852180,1722561041435,-500.0,0.00013698,2]
[333852181,1722561041444,-393.99372958,0.00013698,2]
[333852182,1722561041454,-549.01148261,0.00013698,2]
[333852183,1722561041465,-506.24815418,0.00013698,2]
[333852184,1722561041475,-500.0,0.00013698,2]
[333852185,1722561041486,-500.0,0.00013698,2]
[333852187,1722561041496,-500.0,0.00013698,2]
[333852189,1722561041508,-500.0,0.00013698,2]
[333852191,1722561041517,-481.54945473,0.00013698,2]
[333852192,1722561041527,-500.0,0.00013698,2]
[333852193,1722561041537,-500.0,0.00013698,2]
[333852194,1722561041547,-151.0,0.00013698,2]
[333852195,1722561041557,-151.0,0.00013698,2]
[333852196,1722561041566,-500.0,0.00013698,2]
[333852198,1722561041577,-151.0,0.00013698,2]
[333852200,1722561041587,-151.0,0.00013698,2]
[333852202,1722561041599,-151.0,0.00013698,2]
[333852204,1722561041610,-151.0,0.00013698,2]
[333852206,1722561041622,-151.0,0.00013698,2]
[333852208,1722561041632,-151.0,0.00013698,2]
[333852210,1722561041644,-500.0,0.00013698,2]
[333852212,1722561041654,-514.05161344,0.00013698,2]
[333852214,1722561041663,-500.0,0.00013698,2]
[333852217,1722561041673,-500.0,0.00013698,2]
[333852219,1722561041685,-500.0,0.00013698,2]
[333852221,1722561041694,-500.0,0.00013698,2]
[333852223,1722561041704,-269.00706004,0.00013698,2]
[333852225,1722561041715,-500.0,0.00013698,2]
[333852227,1722561041724,-500.0,0.00013698,2]
[333852229,1722561041734,-500.0,0.00013698,2]
[333852231,1722561041745,-500.0,0.00013698,2]
[333852233,1722561041755,-500.0,0.00013698,2]
[333852235,1722561041764,-500.0,0.00013698,2]
[333852237,1722561041774,-151.0,0.00013698,2]
[333852239,1722561041784,-151.0,0.00013698,2]
[333852240,1722561041795,-151.0,0.00013698,2]
[333852241,1722561041806,-500.0,0.00013698,2]
[333852242,1722561041816,-500.0,0.00013698,2]
[333852243,1722561041826,-500.0,0.00013698,2]
[333852244,1722561041837,-426.635913,0.00013698,2]
[333852245,1722561041847,-500.0,0.00013698,2]
[333852246,1722561041857,-500.0,0.00013698,2]
[333852247,1722561041867,-500.0,0.00013698,2]
[333852248,1722561041877,-531.29677964,0.00013698,2]
[333852249,1722561041887,-500.0,0.00013698,2]
[333852250,1722561041899,-500.0,0.00013698,2]
[333852251,1722561041910,-500.0,0.00013698,2]
[333852252,1722561041922,-500.0,0.00013698,2]
[333852253,1722561041934,-500.0,0.00013698,2]
[333852254,1722561041955,-503.97976153,0.00013698,2]
[333852255,1722561041966,-556.58482081,0.00013698,2]
[333852256,1722561041977,-272.03462921,0.00013698,2]
[333852257,1722561041987,-500.0,0.00013698,2]
[333852258,1722561041999,-500.0,0.00013698,2]
[333852259,1722561042010,-500.0,0.00013698,2]
[333852260,1722561042021,-500.0,0.00013698,2]
[333852261,1722561042032,-500.0,0.00013698,2]
[333852262,1722561042042,-500.0,0.00013698,2]
[333852263,1722561042054,-511.79569878,0.00013698,2]
[333852264,1722561042185,-500.0,0.00013698,2]
[333852265,1722561042196,-500.0,0.00013698,2]
[333852266,1722561042206,-500.0,0.00013698,2]
[333852267,1722561042216,-500.0,0.00013698,2]
[333852268,1722561042226,-500.0,0.00013698,2]
[333852269,1722561042236,-500.0,0.00013698,2]
[333852270,1722561042246,-500.0,0.00013698,2]
[333852271,1722561042256,-500.0,0.00013698,2]
[333852272,1722561042266,-515.08602007,0.00013698,2]
[333852273,1722561042275,-500.0,0.00013698,2]
[333852274,1722561042285,-500.0,0.00013698,2]
[333852275,1722561042294,-500.0,0.00013698,2]
[333852276,1722561042304,-151.0,0.00013698,2]
[333852277,1722561042314,-151.0,0.00013698,2]
[333852278,1722561042324,-151.0,0.00013698,2]
[333852279,1722561042334,-152.164088,0.00013698,2]
[333852280,1722561042344,-500.0,0.00013698,2]
[333852281,1722561042354,-500.0,0.00013698,2]
[333852282,1722561042364,-500.0,0.00013698,2]
[333852283,1722561042375,-500.0,0.00013698,2]
[333852284,1722561042386,-500.0,0.00013698,2]
[333852285,1722561042399,-500.0,0.00013698,2]
[333852286,1722561042410,-500.0,0.00013698,2]
[333852287,1722561042421,-500.63230799,0.00013698,2]
[333852288,1722561042430,-500.0,0.00013698,2]
[333852289,1722561042441,-151.0,0.00013698,2]
[333852290,1722561042453,-196.583047,0.00013698,2]
[333852291,1722561042463,-500.0,0.00013698,2]
[333852292,1722561042473,-500.0,0.00013698,2]
[333852293,1722561042484,-500.35601503,0.00013698,2]
[333852294,1722561042494,-500.0,0.00013698,2]
[333852295,1722561042504,-500.0,0.00013698,2]
[333852296,1722561042515,-500.0,0.00013698,2]
[333852297,1722561042525,-500.0,0.00013698,2]
[333852298,1722561042535,-500.0,0.00013698,2]
[333852299,1722561042546,-500.0,0.00013698,2]
[333852300,1722561042557,-500.0,0.00013698,2]
[333852301,1722561042566,-500.0,0.00013698,2]
[333852302,1722561042576,-500.0,0.00013698,2]
[333852303,1722561042585,-500.0,0.00013698,2]
[333852304,1722561042594,-500.0,0.00013698,2]
[333852305,1722561042603,-465.00850198,0.00013698,2]
[333852306,1722561042613,-500.0,0.00013698,2]
[333852307,1722561042622,-500.0,0.00013698,2]
[333852308,1722561042631,-500.0,0.00013698,2]
[333852309,1722561042644,-151.0,0.00013698,2]
[333852310,1722561042654,-151.0,0.00013698,2]
[333852311,1722561042663,-500.0,0.00013698,2]
[333852312,1722561042673,-151.0,0.00013698,2]
[333852314,1722561042685,-151.0,0.00013698,2]
[333852315,1722561042695,-152.471876,0.00013698,2]
[333852316,1722561042704,-500.0,0.00013698,2]
[333852317,1722561042713,-510.89486563,0.00013698,2]
[333852318,1722561042723,-500.0,0.00013698,2]
[333852319,1722561042732,-392.02774448,0.00013698,2]
[333852320,1722561042742,-500.0,0.00013698,2]
[333852321,1722561042752,-500.0,0.00013698,2]
[333852322,1722561042762,-552.27963361,0.00013698,2]
[333852323,1722561042771,-500.0,0.00013698,2]
[333852325,1722561042780,-500.0,0.00013698,2]
[333852326,1722561042790,-500.0,0.00013698,2]
[333852328,1722561042801,-500.0,0.00013698,2]
[333852329,1722561042810,-506.5094542,0.00013698,2]
[333852330,1722561042820,-500.0,0.00013698,2]
[333852331,1722561042830,-500.0,0.00013698,2]
[333852332,1722561042840,-500.0,0.00013698,2]
[333852333,1722561042851,-500.0,0.00013698,2]
[333852334,1722561042861,-501.59879493,0.00013698,2]
[333852335,1722561042871,-500.0,0.00013698,2]
[333852336,1722561042881,-500.0,0.00013698,2]
[333852337,1722561042893,-500.0,0.00013698,2]
[333852338,1722561042903,-315.32000538,0.00013698,2]
[333852339,1722561042912,-500.0,0.00013698,2]
[333852340,1722561042922,-536.81620935,0.00013698,2]
[333852341,1722561042932,-151.0,0.00013698,2]
[333852342,1722561042941,-151.0,0.00013698,2]
[333852343,1722561042950,-500.0,0.00013698,2]
[333852344,1722561042960,-500.0,0.00013698,2]
[333852345,1722561042969,-151.0,0.00013698,2]
[333852346,1722561042979,-151.0,0.00013698,2]
[333852347,1722561042988,-151.0,0.00013698,2]
[333852348,1722561042997,-151.0,0.00013698,2]
[333852349,1722561043006,-151.0,0.00013698,2]
[333852350,1722561043016,-151.0,0.00013698,2]
[333852351,1722561043028,-500.0,0.00013698,2]
[333852352,1722561043038,-500.0,0.00013698,2]
[333852353,1722561043049,-151.0,0.00013698,2]
[333852354,1722561043058,-151.0,0.00013698,2]
[333852355,1722561043070,-500.0,0.00013698,2]
[333852356,1722561043080,-289.217223,0.00013698,2]
[333852357,1722561043091,-583.17618753,0.00013698,2]
[333852358,1722561043106,-500.0,0.00013698,2]
[333852359,1722561043117,-615.73239655,0.00013698,2]
[333852360,1722561043127,-501.36699702,0.00013698,2]
[333852361,1722561043140,-500.0,0.00013698,2]
[333852362,1722561043152,-500.0,0.00013698,2]
[333852363,1722561043161,-500.0,0.00013698,2]
[333852364,1722561043171,-504.898801,0.00013698,2]
[333852365,1722561043184,-169.105404,0.00013698,2]
[333852366,1722561043194,-500.0,0.00013698,2]
[333852367,1722561043205,-500.0,0.00013698,2]
[333852368,1722561043214,-500.0,0.00013698,2]
[333852369,1722561043223,-500.0,0.00013698,2]
[333852370,1722561043233,-500.0,0.00013698,2]
[333852371,1722561043242,-500.0,0.00013698,2]
[333852372,1722561043253,-500.0,0.00013698,2]
[333852373,1722561043264,-500.0,0.00013698,2]
[333852374,1722561043274,-500.0,0.00013698,2]
[333852375,1722561043283,-500.0,0.00013698,2]
[333852376,1722561043293,-151.0,0.00013698,2]
[333852377,1722561043303,-151.0,0.00013698,2]
[333852378,1722561043314,-500.0,0.00013698,2]
[333852379,1722561043323,-151.0,0.00013698,2]
[333852380,1722561043332,-500.0,0.00013698,2]
[333852381,1722561043341,-500.0,0.00013698,2]
[333852382,1722561043352,-151.0,0.00013698,2]
[333852383,1722561043361,-151.0,0.00013698,2]
[333852384,1722561043371,-151.0,0.00013698,2]
[333852385,1722561043381,-500.0,0.00013698,2]
[333852386,1722561043392,-500.0,0.00013698,2]
[333852387,1722561043402,-500.0,0.00013698,2]
[333852388,1722561043412,-500.0,0.00013698,2]
[333852389,1722561043423,-524.84810323,0.00013698,2]
[333852390,1722561043433,-500.0,0.00013698,2]
[333852391,1722561043445,-500.0,0.00013698,2]
[333852392,1722561043455,-151.0,0.00013698,2]
[333852393,1722561043465,-151.0,0.00013698,2]
[333852394,1722561043474,-500.0,0.00013698,2]
[333852395,1722561043484,-500.0,0.00013698,2]
[333852396,1722561043494,-151.0,0.00013698,2]
[333852397,1722561043505,-500.0,0.00013698,2]
[333852398,1722561043515,-500.0,0.00013698,2]
[333852399,1722561043527,-500.0,0.00013698,2]
[333852400,1722561043539,-151.0,0.00013698,2]
[333852401,1722561043549,-500.0,0.00013698,2]
[333852402,1722561043561,-151.0,0.00013698,2]
[333852403,1722561043571,-151.0,0.00013698,2]
[333852404,1722561043581,-500.0,0.00013698,2]
[333852406,1722561043592,-151.0,0.00013698,2]
[333852407,1722561043602,-151.0,0.00013698,2]
[333852409,1722561043612,-151.0,0.00013698,2]
[333852412,1722561043623,-500.0,0.00013698,2]
[333852414,1722561043633,-500.0,0.00013698,2]
[333852416,1722561043644,-500.0,0.00013698,2]
[333852418,1722561043656,-500.0,0.00013698,2]
[333852420,1722561043666,-500.0,0.00013698,2]
[333852422,1722561043677,-500.0,0.00013698,2]
[333852423,1722561043686,-500.0,0.00013698,2]
[333852424,1722561043696,-500.0,0.00013698,2]
[333852426,1722561043705,-500.0,0.00013698,2]
[333852428,1722561043715,-285.62312397,0.00013698,2]
[333852441,1722561044488,-214.37687603,0.00013698,2]
[333852442,1722561044499,-65.87736193,0.00013698,2]
[333852443,1722561044512,-434.12263807,0.00013698,2]
[333852444,1722561044524,-500.0,0.00013698,2]
[333852445,1722561044535,-500.0,0.00013698,2]
[333852446,1722561044545,-500.0,0.00013698,2]
[333852447,1722561044554,-500.0,0.00013698,2]
[333852448,1722561044565,-500.0,0.00013698,2]
[333852449,1722561044576,-500.0,0.00013698,2]
[333852450,1722561044586,-500.0,0.00013698,2]
[333852451,1722561044596,-500.0,0.00013698,2]
[333852452,1722561044606,-151.0,0.00013698,2]
[333852453,1722561044617,-151.0,0.00013698,2]
[333852454,1722561044627,-151.0,0.00013698,2]
[333852455,1722561044639,-151.0,0.00013698,2]
[333852456,1722561044649,-151.0,0.00013698,2]
[333852457,1722561044658,-151.0,0.00013698,2]
[333852458,1722561044668,-500.0,0.00013698,2]
[333852459,1722561044679,-509.70524124,0.00013698,2]
[333852460,1722561044690,-150.17212069,0.00013698,2]
[333852462,1722561046618,-349.82787931,0.00013698,2]
[333852463,1722561046627,-373.15267782,0.00013698,2]
[333852464,1722561046639,-126.84732218,0.00013698,2]
[333852465,1722561046648,-504.51120884,0.00013698,2]
[333852466,1722561046658,-311.85160008,0.00013698,2]
[333852467,1722561046669,-188.14839992,0.00013698,2]
[333852469,1722561046679,-337.93232883,0.00013698,2]
[333852475,1722561231205,154.84700014,9.999e-05,2]
[333852476,1722561266192,154.86287803,9.999e-05,2]
[333852477,1722561325417,154.83890047,9.999e-05,2]
[333852479,1722561414785,154.81560789,9.999e-05,2]
[333852482,1722561520652,154.77557542,0.0001,2]
[333852483,1722561555077,309.55037216,9.999e-05,2]
[333852484,1722561577004,191.41819055,0.0001,2]
[333852485,1722561613161,154.80993255,0.0001,2]
[333852487,1722561938828,154.83638357,9.999e-05,2]
[333852508,1722562232547,-158.767744,0.00012986,2]
[333852510,1722562232559,-150.112233,0.00013,2]
[333852512,1722562232570,-1000.0,0.00013424,2]
[333852513,1722562232580,-1000.0,0.0001344,2]
[333852514,1722562232590,-367.80729453,0.00013453,2]
[333852515,1722562232600,-1000.0,0.00013459,2]
[333852516,1722562232609,-1000.0,0.00013462,2]
[333852517,1722562232619,-1000.0,0.00013472,2]
[333852518,1722562232629,-1000.0,0.00013512,2]
[333852520,1722562232638,-1000.0,0.00013513,2]
[333852522,1722562232647,-70.83050344,0.00013525,2]
[333852524,1722562232718,-929.16949656,0.00013525,2]
[333852526,1722562232728,-1000.0,0.00013531,2]
[333852528,1722562232737,-300.0,0.00013535,2]
[333852529,1722562232747,-639.35517028,0.00013536,2]
[333852537,1722562238667,-2724.25955739,0.0001212,2]
[333852539,1722562238677,-360.64482972,0.00013536,2]
[333852541,1722562238687,-1000.0,0.00013536,2]
[333852543,1722562238698,-1000.0,0.00013541,2]
[333852545,1722562238708,-1000.0,0.00013558,2]
[333852547,1722562238717,-1000.0,0.00013564,2]
[333852548,1722562238727,-1000.0,0.00013582,2]
[333852549,1722562238737,-1000.0,0.00013586,2]
[333852550,1722562238746,-335.62752699,0.00013597,2]
[333852551,1722562238756,-797.55006051,0.00013598,2]
[333852552,1722562238765,-22582.77871028,0.000136,2]
[333852553,1722562238775,-1000.0,0.00013603,2]
[333852554,1722562238784,-1000.0,0.00013609,2]
[333852555,1722562238793,-1000.0,0.0001361,2]
[333852556,1722562238803,-175.90288281,0.00013633,2]
[333852557,1722562238815,-824.09711719,0.00013633,2]
[333852558,1722562238824,-368.9084844,0.00013644,2]
[333852559,1722562238835,-547.6732148,0.00013644,2]
[333852560,1722562238860,-83.4183008,0.00013644,2]
[333852561,1722562238870,-1000.0,0.00013682,2]
[333852562,1722562238879,-22566.90943894,0.00013686,2]
[333852570,1722562240734,-3502.2443462,0.00013686,2]
[333852571,1722562240743,-593.04105131,0.00013686,2]
[333852572,1722562240756,-6780.24543445,0.00013686,2]
[333852574,1722562240765,-28622.3905983,0.00013687,2]
[333852575,1722562240775,-1000.0,0.00013687,2]
[333852576,1722562240871,-836.62,0.00013687,2]
[333852577,1722562240881,-836.62,0.00013687,2]
[333852578,1722562240891,-836.62,0.00013687,2]
[333852579,1722562240900,-35649.44790274,0.00013688,2]
[333852580,1722562240910,-28622.3905983,0.00013688,2]
[333852581,1722562240919,-200356.734188,0.00013688,2]
[333852582,1722562240929,-1000.0,0.00013697,2]
[333852583,1722562240938,-836.62,0.00013697,2]
[333852584,1722562240947,-836.62,0.00013697,2]
[333852585,1722562240958,-836.62,0.00013697,2]
[333852586,1722562240967,-836.62,0.00013697,2]
[333852587,1722562240977,-836.62,0.00013697,2]
[333852588,1722562240986,-836.62,0.00013697,2]
[333852589,1722562240996,-836.62,0.00013697,2]
[333852590,1722562241005,-836.62,0.00013697,2]
[333852591,1722562241015,-836.62,0.00013697,2]
[333852592,1722562241025,-836.62,0.00013697,2]
[333852593,1722562241034,-836.62,0.00013697,2]
[333852594,1722562241044,-27989.3957358,0.00013698,5]
[333852595,1722562241054,-21542.77394668,0.00013698,5]
[333852596,1722562241063,-500.0,0.00013698,2]
[333852597,1722562241072,-500.0,0.00013698,2]
[333852598,1722562241082,-500.0,0.00013698,2]
[333852599,1722562241092,-500.0,0.00013698,2]
[333852600,1722562241101,-500.0,0.00013698,2]
[333852601,1722562241111,-500.0,0.00013698,2]
[333852602,1722562241121,-500.0,0.00013698,2]
[333852603,1722562241130,-500.0,0.00013698,2]
[333852604,1722562241140,-500.0,0.00013698,2]
[333852605,1722562241149,-500.0,0.00013698,2]
[333852606,1722562241159,-500.0,0.00013698,2]
[333852607,1722562241169,-500.0,0.00013698,2]
[333852608,1722562241178,-471.95531405,0.00013698,2]
[333852609,1722562241188,-500.0,0.00013698,2]
[333852610,1722562241197,-337.20264963,0.00013698,2]
[333852611,1722562241207,-500.0,0.00013698,2]
[333852612,1722562241217,-500.0,0.00013698,2]
[333852613,1722562241226,-102.29551308,0.00013698,2]
[333852630,1722562243710,-397.70448692,0.00013698,2]
[333852631,1722562243722,-500.0,0.00013698,2]
[333852632,1722562243738,-500.0,0.00013698,2]
[333852633,1722562243753,-500.0,0.00013698,2]
[333852634,1722562243767,-500.0,0.00013698,2]
[333852635,1722562243778,-500.0,0.00013698,2]
[333852636,1722562243789,-433.32569633,0.00013698,2]
[333852637,1722562243800,-500.0,0.00013698,2]
[333852638,1722562243813,-500.0,0.00013698,2]
[333852639,1722562243826,-500.0,0.00013698,2]
[333852640,1722562243838,-500.0,0.00013698,2]
[333852641,1722562243850,-500.0,0.00013698,2]
[333852643,1722562243863,-500.0,0.00013698,2]
[333852645,1722562243876,-500.0,0.00013698,2]
[333852646,1722562243887,-500.0,0.00013698,2]
[333852647,1722562243898,-500.0,0.00013698,2]
[333852648,1722562243910,-170.61718811,0.00013698,2]
[333852649,1722562243923,-500.0,0.00013698,2]
[333852651,1722562243935,-500.0,0.00013698,2]
[333852653,1722562243947,-500.0,0.00013698,2]
[333852655,1722562243962,-18.32118776,0.00013698,2]
[333852656,1722562244204,-481.67881224,0.00013698,2]
[333852657,1722562244217,-457.11137928,0.00013698,2]
[333852668,1722562246917,-42.88862072,0.00013698,2]
[333852669,1722562246927,-500.0,0.00013698,2]
[333852670,1722562246937,-500.0,0.00013698,2]
[333852671,1722562246947,-500.0,0.00013698,2]
[333852672,1722562246959,-500.0,0.00013698,2]
[333852673,1722562246968,-215.96102262,0.00013698,2]
[333852674,1722562247102,-284.03897738,0.00013698,2]
[333852675,1722562247112,-500.0,0.00013698,2]
[333852676,1722562247122,-500.0,0.00013698,2]
[333852677,1722562247132,-500.0,0.00013698,2]
[333852678,1722562247141,-500.0,0.00013698,2]
[333852680,1722562247151,-549.01148261,0.00013698,2]
[333852681,1722562247160,-500.0,0.00013698,2]
[333852682,1722562247170,-500.0,0.00013698,2]
[333852683,1722562247179,-506.24815418,0.00013698,2]
[333852684,1722562247189,-500.0,0.00013698,2]
[333852685,1722562247199,-500.0,0.00013698,2]
[333852686,1722562247213,-500.0,0.00013698,2]